bitfinex-derivatives/quotes_BTCF0:USTF0_20250127
["timestamp","ask_amount","ask_price","bid_price","bid_amount"]
[1737991208639,0.0001485,100980.0,100970.0,0.558867]
[1737991209648,0.568824,101000.0,100970.0,0.58663934]
[1737991209841,0.568824,101000.0,100980.0,0.198034]
[1737991210036,0.17696258,100990.0,100980.0,0.558834]
[1737991210343,0.20645635,101010.0,101000.0,0.198008]
[1737991210632,0.40444535,101010.0,101000.0,0.205928]
[1737991210833,0.56725635,101010.0,101000.0,0.198008]
[1737991211232,0.20645635,101010.0,101000.0,0.42384734]
[1737991211540,0.56725635,101010.0,101000.0,0.42384734]
[1737991211835,0.20645635,101010.0,101000.0,0.198008]
[1737991212033,0.20645635,101010.0,101000.0,0.205928]
[1737991212432,0.20645635,101010.0,101000.0,0.43176734]
[1737991213037,0.20645635,101010.0,101000.0,0.79256734]
[1737991213540,0.11050398,101010.0,101000.0,0.98666734]
[1737991213837,0.1286765,101020.0,101010.0,0.197989]
[1737991214037,0.29284424,101030.0,101020.0,0.197969]
[1737991214242,0.29284424,101030.0,101020.0,0.42380834]
[1737991214536,0.14922704,101040.0,101020.0,2.08663934]
[1737991214732,0.3608,101070.0,101030.0,0.3608]
[1737991214927,0.01,101060.0,101030.0,0.58663934]
[1737991215128,0.0101485,101060.0,101050.0,0.197901]
[1737991215330,0.0001485,101060.0,101050.0,0.197901]
[1737991215735,0.0001485,101060.0,101050.0,0.42374034]
[1737991216236,0.0001485,101060.0,101050.0,0.78454034]
[1737991216535,0.0001485,101060.0,101050.0,0.42374034]
[1737991216742,0.54072607,101090.0,101050.0,0.98558934]
[1737991217041,0.08030499,101090.0,101080.0,0.78449134]
[1737991217235,0.10148474,101100.0,101080.0,0.58663934]
[1737991217434,0.46228474,101100.0,101090.0,0.685952]
[1737991217634,0.10148474,101100.0,101090.0,0.685952]
[1737991217833,0.46228474,101100.0,101090.0,0.685952]
[1737991218034,0.10148474,101100.0,101090.0,0.685952]
[1737991218341,0.10148474,101100.0,101090.0,1.046752]
[1737991218552,0.26370831,101110.0,101100.0,0.197812]
[1737991218843,0.26370831,101110.0,101100.0,0.78445134]
[1737991219346,0.26370831,101110.0,101100.0,2.28445134]
[1737991219550,0.01,101120.0,101110.0,0.197793]
[1737991220936,0.0101485,101130.0,101120.0,0.197773]
[1737991221132,0.0001485,101130.0,101120.0,0.42361234]
[1737991221547,0.0001485,101130.0,101120.0,1.92361234]
[1737991222342,0.0001485,101130.0,101120.0,1.697773]
[1737991222543,0.3709485,101130.0,101120.0,1.697773]
[1737991223143,0.0101485,101130.0,101120.0,0.197773]
[1737991223738,0.0101485,101130.0,101120.0,1.697773]
[1737991223932,0.0101485,101130.0,101120.0,0.197773]
[1737991224548,0.5687025,101130.0,101110.0,0.197787]
[1737991224741,0.3608,101120.0,101110.0,0.197787]
[1737991225341,0.568573,101120.0,101100.0,0.2226765]
[1737991225639,0.3608,101110.0,101100.0,0.2226765]
[1737991225846,0.3708,101120.0,101110.0,0.197793]
[1737991226639,0.3608,101140.0,101130.0,0.197754]
[1737991226839,0.558515,101150.0,101140.0,0.197729]
[1737991227246,0.558515,101150.0,101140.0,1.697729]
[1737991227444,0.558515,101150.0,101140.0,0.197729]
[1737991227751,0.197735,101140.0,101130.0,0.197748]
[1737991228046,0.3608,101140.0,101130.0,1.6978965]
[1737991229751,0.85179319,101150.0,101130.0,1.6978965]
[1737991229752,0.29327219,101150.0,101140.0,0.197734]
[1737991230050,0.56667346,101150.0,101130.0,1.7058095]
[1737991230241,0.56667346,101150.0,101130.0,0.0080585]
[1737991230242,0.3608,101140.0,101130.0,0.0080585]
[1737991230438,0.558534,101140.0,101130.0,0.0080585]
[1737991230645,0.67311703,101140.0,101130.0,0.0080585]
[1737991230949,0.558534,101140.0,101130.0,0.0080585]
[1737991231140,0.76171703,101140.0,101130.0,0.0080585]
[1737991231446,0.76171703,101140.0,101100.0,0.222525]
[1737991231447,0.049438,101130.0,101100.0,0.222525]
[1737991231749,0.919393,101110.0,101100.0,0.02472]
[1737991232153,0.197823,101100.0,101090.0,0.197831]
[1737991232345,0.3608,101100.0,101090.0,0.247289]
[1737991232547,0.3608,101100.0,101090.0,0.255199]
[1737991232848,0.3609485,101110.0,101090.0,0.057367]
[1737991233145,0.3609485,101110.0,101100.0,0.197813]
[1737991233352,0.0001485,101110.0,101100.0,0.197813]
[1737991234348,0.0001485,101110.0,101100.0,0.78445234]
[1737991234349,5e-07,101110.0,101100.0,0.78445234]
[1737991234945,5e-07,101110.0,101100.0,1.08445234]
[1737991235251,5e-07,101110.0,101100.0,2.58445234]
[1737991235458,1e-08,101120.0,101110.0,0.197793]
[1737991235652,1e-08,101120.0,101110.0,0.558593]
[1737991238845,1e-08,101120.0,101110.0,0.197793]
[1737991239051,0.0001485,101130.0,101120.0,0.197774]
[1737991239263,0.0001485,101130.0,101120.0,0.558574]
[1737991239553,0.0001485,101130.0,101120.0,1.27217334]
[1737991239763,0.0001485,101130.0,101120.0,2.77217334]
[1737991239956,0.0001485,101130.0,101120.0,2.86397334]
[1737991240158,0.76496193,101170.0,101160.0,0.197695]
[1737991240454,0.56728393,101170.0,101160.0,0.197695]
[1737991241155,0.20648393,101170.0,101160.0,0.558495]
[1737991241356,0.20500005,101170.0,101160.0,0.558495]
[1737991241552,0.20500005,101170.0,101160.0,0.78433434]
[1737991241754,0.16640605,101170.0,101160.0,0.78433434]
[1737991241949,0.16640605,101170.0,101160.0,0.197695]
[1737991242252,0.16640605,101170.0,101160.0,0.78433434]
[1737991243454,9.41e-05,101180.0,101160.0,0.59072009]
[1737991243654,0.46221122,101190.0,101170.0,0.3608]
[1737991243854,0.9569667,101200.0,101170.0,0.410218]
[1737991244063,0.5961667,101200.0,101190.0,0.197637]
[1737991244452,0.5000667,101200.0,101190.0,0.197637]
[1737991245356,0.5000667,101200.0,101190.0,1.697637]
[1737991245948,0.5000667,101200.0,101190.0,2.058437]
[1737991247053,0.3959444,101200.0,101190.0,2.058437]
[1737991247259,0.29317313,101210.0,101200.0,0.197617]
[1737991247453,0.29317313,101210.0,101200.0,0.78425634]
[1737991247653,0.76323365,101220.0,101210.0,0.197598]
[1737991247654,0.558379,101220.0,101210.0,0.197598]
[1737991248660,0.558379,101220.0,101200.0,0.0001485]
[1737991248661,0.3608,101220.0,101200.0,0.63619184]
[1737991248966,0.85379648,101230.0,101220.0,0.197579]
[1737991249156,0.02963548,101230.0,101220.0,0.558379]
[1737991249360,0.02963548,101230.0,101220.0,0.78421834]
[1737991249560,0.00148223,101250.0,101240.0,0.19754]
[1737991249865,0.4948438,101260.0,101250.0,0.19752]
[1737991250058,0.23518379,101260.0,101250.0,0.19752]
[1737991250259,0.23518379,101260.0,101250.0,1.69752]
[1737991250866,0.59598379,101260.0,101250.0,1.69752]
[1737991251456,0.558282,101270.0,101260.0,0.197501]
[1737991251650,0.3608,101280.0,101270.0,0.197481]
[1737991252061,0.558262,101280.0,101250.0,0.3609485]
[1737991252265,0.3608,101270.0,101260.0,1.92332734]
[1737991252455,0.45326666,101290.0,101260.0,2.08663934]
[1737991252657,0.43972543,101290.0,101280.0,0.42330134]
[1737991252851,0.34362543,101290.0,101280.0,0.42330134]
[1737991253164,0.34362543,101290.0,101280.0,0.34301389]
[1737991253865,0.75397313,101300.0,101290.0,0.197442]
[1737991254261,0.39317313,101300.0,101290.0,0.197442]
[1737991254463,0.39317313,101300.0,101290.0,0.558242]
[1737991254765,0.3608,101330.0,101310.0,0.197386]
[1737991254969,0.3608,101320.0,101300.0,0.58663934]
[1737991255162,0.46729823,101320.0,101300.0,0.22583934]
[1737991255359,0.3608,101320.0,101300.0,1.72598784]
[1737991255561,0.558203,101310.0,101300.0,1.5001485]
[1737991255764,0.558203,101310.0,101300.0,1.6975715]
[1737991256067,0.671833,101310.0,101300.0,0.0001485]
[1737991256657,0.197442,101290.0,101270.0,0.197478]
[1737991256964,0.3608,101280.0,101270.0,0.197478]
[1737991257470,0.3608,101280.0,101260.0,0.42333634]
[1737991257670,0.197481,101270.0,101260.0,0.42334034]
[1737991257862,0.46420443,101280.0,101260.0,0.42348884]
[1737991258171,0.558265,101280.0,101270.0,0.197481]
[1737991258869,0.3608,101280.0,101270.0,0.197481]
[1737991259864,0.1975955,101290.0,101260.0,2.09000918]
[1737991260069,0.5583955,101290.0,101280.0,0.197462]
[1737991260269,0.5583955,101290.0,101270.0,0.197475]
[1737991260467,0.558262,101280.0,101270.0,0.197475]
[1737991260771,0.66408406,101280.0,101260.0,1.92670318]
[1737991260976,0.10582206,101280.0,101270.0,0.197481]
[1737991261273,0.0001485,101290.0,101280.0,0.197462]
[1737991261471,0.0001485,101290.0,101280.0,0.78410134]
[1737991262178,0.0001485,101290.0,101280.0,0.42330134]
[1737991263071,0.0001485,101290.0,101280.0,0.78410134]
[1737991263965,0.0001485,101290.0,101280.0,0.42330134]
[1737991264173,0.0001485,101290.0,101280.0,0.78410134]
[1737991264685,0.0014813,101310.0,101280.0,0.58663934]
[1737991264874,0.3608,101330.0,101300.0,0.63599434]
[1737991265072,0.820848,101340.0,101320.0,0.22583934]
[1737991265374,0.820848,101340.0,101320.0,1.92320834]
[1737991265375,0.6235,101340.0,101320.0,1.92320834]
[1737991265574,0.558164,101330.0,101320.0,1.697369]
[1737991265976,0.6235,101340.0,101330.0,0.197364]
[1737991266176,0.2627,101340.0,101330.0,0.558164]
[1737991266479,0.6235,101340.0,101330.0,0.197364]
[1737991266781,0.6235,101340.0,101320.0,1.697381]
[1737991267076,0.558164,101330.0,101310.0,0.00339329]
[1737991267383,0.197403,101310.0,101300.0,0.71287934]
[1737991267568,0.558203,101310.0,101300.0,0.48704]
[1737991267770,0.558203,101310.0,101290.0,0.197436]
[1737991267771,0.5143153,101310.0,101270.0,0.487]
[1737991267969,0.558262,101280.0,101270.0,0.684478]
[1737991268165,0.3608,101280.0,101270.0,0.684478]
[1737991268365,0.3608,101280.0,101270.0,2.184478]
[1737991268779,0.558262,101280.0,101270.0,2.184478]
[1737991269179,0.3608,101280.0,101270.0,2.184478]
[1737991269677,0.558262,101280.0,101270.0,2.184478]
[1737991270081,0.0001485,101290.0,101280.0,0.197462]
[1737991270273,0.0001485,101290.0,101280.0,0.42330134]
[1737991272083,0.31288124,101320.0,101280.0,0.58663934]
[1737991272272,0.3608,101330.0,101320.0,0.197384]
[1737991273181,0.558164,101330.0,101320.0,0.197384]
[1737991273372,0.47275843,101330.0,101320.0,0.197384]
[1737991273778,0.3608,101330.0,101320.0,1.697384]
[1737991274079,0.822358,101340.0,101330.0,0.197364]
[1737991274788,0.197364,101330.0,101320.0,1.697377]
[1737991274972,0.92974355,101340.0,101330.0,0.197364]
[1737991275286,0.10739655,101330.0,101310.0,0.200767]
[1737991275584,0.197384,101320.0,101310.0,0.200767]
[1737991275883,0.558172,101330.0,101310.0,1.700767]
[1737991276084,0.625,101340.0,101310.0,1.72920934]
[1737991276280,0.625,101340.0,101310.0,2.13935534]
[1737991276281,0.822347,101340.0,101310.0,2.13935534]
[1737991276478,0.822347,101340.0,101330.0,0.197364]
[1737991276987,0.929616,101340.0,101330.0,0.197364]
[1737991277189,0.665416,101340.0,101330.0,0.197364]
[1737991277390,0.558147,101340.0,101330.0,0.11711098]
[1737991277784,0.3608,101340.0,101330.0,0.197364]
[1737991278177,0.3608,101340.0,101330.0,0.42320334]
[1737991279392,0.2621,101360.0,101350.0,0.197325]
[1737991279393,0.558109,101360.0,101350.0,0.197325]
[1737991279595,0.3608,101360.0,101350.0,0.42316434]
[1737991279786,0.86173073,101380.0,101350.0,0.22583934]
[1737991279981,0.69819973,101380.0,101370.0,0.42312534]
[1737991280187,0.41063073,101380.0,101370.0,0.42312534]
[1737991280691,0.60789773,101380.0,101370.0,0.42312534]
[1737991281190,0.96869773,101380.0,101370.0,0.42312534]
[1737991281494,0.79229773,101380.0,101370.0,0.42312534]
[1737991281888,0.55954732,101380.0,101370.0,0.42312534]
[1737991282091,0.55805,101390.0,101370.0,0.58663934]
[1737991282294,0.3608,101390.0,101380.0,0.197267]
[1737991282494,0.97715042,101400.0,101380.0,0.197267]
[1737991282695,0.197248,101390.0,101380.0,0.197264]
[1737991282886,0.197248,101390.0,101370.0,0.58663934]
[1737991282887,1.08184471,101400.0,101390.0,0.197247]
[1737991283087,0.97658341,101400.0,101390.0,0.197247]
[1737991283281,0.33275041,101400.0,101390.0,0.197247]
[1737991283480,0.33275041,101400.0,101390.0,0.42308634]
[1737991283789,0.33275041,101400.0,101390.0,0.22583934]
[1737991283989,0.33275041,101400.0,101390.0,1.5]
[1737991283990,0.89077841,101400.0,101390.0,1.5]
[1737991284189,0.197247,101390.0,101380.0,0.0001485]
[1737991284388,0.197247,101390.0,101350.0,0.71255934]
[1737991284389,0.3608,101390.0,101350.0,0.71255934]
[1737991284692,0.3608,101390.0,101350.0,0.48672]
[1737991284693,0.558106,101360.0,101350.0,0.48672]
[1737991285092,0.66207926,101360.0,101350.0,0.48672]
[1737991286097,0.66207926,101360.0,101350.0,0.40647336]
[1737991286795,0.197325,101350.0,101340.0,0.0001485]
[1737991286988,0.558125,101350.0,101340.0,0.0001485]
[1737991287189,0.96451061,101350.0,101340.0,0.0001485]
[1737991287392,0.66451061,101350.0,101340.0,0.0001485]
[1737991287694,0.55578561,101350.0,101330.0,0.18320661]
[1737991287893,0.63597534,101340.0,101310.0,0.28943801]
[1737991288194,0.7216,101320.0,101300.0,0.34732561]
[1737991288397,0.197442,101290.0,101280.0,1.5]
[1737991288585,0.197442,101290.0,101280.0,1.697462]
[1737991288902,0.3609485,101300.0,101280.0,1.5]
[1737991289096,0.5583785,101300.0,101290.0,0.197442]
[1737991289290,0.4749595,101300.0,101280.0,1.50789]
[1737991289490,0.558242,101290.0,101280.0,1.705336]
[1737991290791,0.197442,101290.0,101280.0,1.705336]
[1737991291189,0.69683363,101290.0,101280.0,1.705336]
[1737991291897,0.02961792,101290.0,101280.0,1.705336]
[1737991292090,0.02961792,101290.0,101280.0,1.697446]
[1737991293094,0.02961792,101290.0,101280.0,2.058246]
[1737991293394,0.32307475,101300.0,101290.0,0.197442]
[1737991293594,0.32307475,101300.0,101290.0,0.78408134]
[1737991293797,0.18727475,101300.0,101290.0,2.28408134]
[1737991294702,0.74549775,101300.0,101290.0,1.697442]
[1737991295087,0.74549775,101300.0,101280.0,0.197457]
[1737991295292,0.74549775,101300.0,101290.0,0.197442]
[1737991295799,0.74549775,101300.0,101290.0,1.697442]
[1737991296102,0.74549775,101300.0,101290.0,1.5]
[1737991296701,0.3608,101300.0,101290.0,1.92328134]
[1737991297600,0.3608,101300.0,101290.0,1.697442]
[1737991297994,0.558223,101300.0,101290.0,1.5]
[1737991298197,0.558223,101300.0,101280.0,0.197455]
[1737991298499,0.3608,101290.0,101280.0,0.197455]
[1737991298693,0.3608,101290.0,101280.0,1.697455]
[1737991299401,0.558242,101290.0,101280.0,1.697455]
[1737991299596,0.3608,101290.0,101270.0,0.68154074]
[1737991299803,0.558262,101280.0,101270.0,0.7737475]
[1737991299999,0.558262,101280.0,101270.0,0.4868685]
[1737991300199,0.66987717,101280.0,101270.0,0.4868685]
[1737991300404,0.197501,101260.0,101250.0,0.27799345]
[1737991300596,0.919101,101260.0,101250.0,0.27799345]
[1737991300798,0.919101,101260.0,101250.0,1.80268345]
[1737991300997,0.919101,101260.0,101250.0,1.81848345]
[1737991301196,1.03251285,101260.0,101250.0,1.738008]
[1737991301397,1.03251285,101260.0,101250.0,1.54049]
[1737991301602,1.03251285,101260.0,101250.0,0.04049]
[1737991302707,0.19752,101250.0,101240.0,0.0001485]
[1737991302907,0.55832,101250.0,101240.0,0.0001485]
[1737991303209,0.197559,101230.0,101220.0,0.01698]
[1737991303504,0.919159,101230.0,101220.0,0.197579]
[1737991303704,0.82450934,101230.0,101220.0,0.197579]
[1737991303903,0.3608,101240.0,101220.0,0.3687]
[1737991304103,0.3608,101240.0,101230.0,0.197559]
[1737991304302,0.3609485,101240.0,101230.0,0.197559]
[1737991305809,0.5584885,101240.0,101230.0,1.697559]
[1737991306001,0.3609485,101240.0,101230.0,1.697559]
[1737991306410,0.0001485,101240.0,101230.0,2.28419834]
[1737991307101,0.3609485,101240.0,101230.0,1.70159932]
[1737991307297,0.5584885,101240.0,101230.0,1.5]
[1737991307608,0.197559,101230.0,101220.0,0.2056275]
[1737991307808,0.558359,101230.0,101220.0,0.2056275]
[1737991308010,0.558359,101230.0,101220.0,1.7056275]
[1737991308604,0.197559,101230.0,101220.0,1.7056275]
[1737991308803,0.558359,101230.0,101220.0,1.7056275]
[1737991309000,0.66541883,101230.0,101220.0,1.5080485]
[1737991310297,0.66541883,101230.0,101220.0,0.0080485]
[1737991310607,0.66541883,101230.0,101220.0,0.0001485]
[1737991311298,0.66541883,101230.0,101200.0,0.330211]
[1737991311299,0.197598,101210.0,101200.0,0.330211]
[1737991311500,0.7216,101210.0,101180.0,0.00510857]
[1737991311711,0.19768,101170.0,101160.0,0.197692]
[1737991311910,0.55848,101170.0,101160.0,0.197692]
[1737991312110,0.7216,101170.0,101160.0,0.197692]
[1737991312317,0.7216,101170.0,101150.0,0.1658]
[1737991312318,0.3608,101180.0,101170.0,0.197676]
[1737991312607,0.3609485,101180.0,101170.0,0.197676]
[1737991312812,0.3609485,101180.0,101170.0,0.205576]
[1737991313008,0.0001485,101180.0,101170.0,0.43141534]
[1737991313214,0.0001485,101180.0,101170.0,0.79221534]
[1737991313412,0.0001485,101180.0,101170.0,0.43141534]
[1737991313907,0.0001485,101180.0,101170.0,0.78431534]
[1737991314213,0.0001485,101180.0,101170.0,0.42351534]
[1737991314417,0.0001485,101180.0,101170.0,0.78431534]
[1737991314614,0.36228293,101200.0,101190.0,0.197637]
[1737991314806,0.55990093,101200.0,101190.0,0.197637]
[1737991315306,0.55990093,101200.0,101190.0,1.697637]
[1737991316110,0.00148293,101200.0,101190.0,1.92347634]
[1737991316317,0.00148293,101200.0,101190.0,2.28427634]
[1737991316513,0.17629009,101210.0,101200.0,0.197618]
[1737991316706,0.17629009,101210.0,101200.0,0.558418]
[1737991317819,0.17629009,101210.0,101200.0,0.640618]
[1737991318013,0.04249009,101210.0,101200.0,0.640618]
[1737991318318,0.76533175,101240.0,101230.0,0.197559]
[1737991318718,0.56778075,101240.0,101230.0,0.197559]
[1737991319018,0.56778075,101240.0,101230.0,1.697559]
[1737991319203,0.56778075,101240.0,101220.0,0.63603334]
[1737991319204,0.64419404,101240.0,101220.0,0.197573]
[1737991319408,0.558359,101230.0,101220.0,0.1977215]
[1737991319819,0.66459721,101230.0,101220.0,1.6977215]
[1737991320421,0.66459721,101230.0,101220.0,0.0001485]
[1737991320621,0.049394,101220.0,101180.0,0.222351]
[1737991320918,0.3608,101200.0,101190.0,0.197621]
[1737991321119,0.3608,101210.0,101200.0,0.197618]
[1737991321308,0.558398,101210.0,101200.0,0.197618]
[1737991321507,0.66740068,101210.0,101200.0,0.197618]
[1737991321712,0.558398,101210.0,101200.0,0.197618]
[1737991321913,0.3608,101210.0,101200.0,0.197618]
[1737991322112,0.67072865,101210.0,101200.0,0.197618]
[1737991322421,0.558398,101210.0,101200.0,0.197618]
[1737991322715,0.47313065,101210.0,101190.0,0.0001485]
[1737991322916,0.67074165,101210.0,101200.0,0.197618]
[1737991323415,0.3608,101210.0,101200.0,0.42345734]
[1737991323619,0.3609485,101220.0,101210.0,0.197598]
[1737991323816,0.7217485,101220.0,101200.0,0.42344834]
[1737991324123,0.197618,101200.0,101190.0,0.00520142]
[1737991324322,0.558418,101200.0,101190.0,0.0001485]
[1737991324620,0.66422942,101200.0,101190.0,0.0001485]
[1737991324821,0.558418,101200.0,101190.0,0.0001485]
[1737991325024,0.89671426,101200.0,101190.0,0.0001485]
[1737991325216,0.197657,101180.0,101170.0,1.697671]
[1737991325416,0.919257,101180.0,101170.0,1.5]
[1737991325614,1.03171392,101180.0,101170.0,1.52471]
[1737991326114,1.03171392,101180.0,101170.0,0.03075]
[1737991326816,1.03171392,101180.0,101170.0,0.00604]
[1737991327121,0.197676,101170.0,101160.0,2.1930215]
[1737991327324,0.558476,101170.0,101160.0,2.1930215]
[1737991327513,0.66669235,101170.0,101160.0,2.1930215]
[1737991328221,0.66669235,101170.0,101160.0,0.6930215]
[1737991328623,0.66669235,101170.0,101160.0,2.1930215]
[1737991329124,0.66669235,101170.0,101160.0,0.6930215]
[1737991329326,0.66669235,101170.0,101160.0,0.6851215]
[1737991329515,0.66669235,101170.0,101160.0,2.1851215]
[1737991329823,0.66669235,101170.0,101160.0,0.0001485]
[1737991330021,0.83899235,101170.0,101160.0,0.0001485]
[1737991330225,0.197696,101160.0,101150.0,0.203759]
[1737991330422,0.558496,101160.0,101150.0,0.203759]
[1737991330723,0.558496,101160.0,101150.0,0.211659]
[1737991331025,0.3608,101160.0,101150.0,0.205609]
[1737991331411,0.66374006,101160.0,101150.0,0.0079]
[1737991332112,0.66374006,101160.0,101150.0,0.205615]
[1737991333017,0.558496,101160.0,101150.0,0.197715]
[1737991333517,0.197715,101150.0,101140.0,0.1978705]
[1737991333724,0.558515,101150.0,101140.0,0.1978835]
[1737991333922,0.558515,101150.0,101140.0,0.0001485]
[1737991334422,0.558515,101150.0,101140.0,0.2057835]
[1737991334816,0.558515,101150.0,101140.0,0.0080485]
[1737991335330,0.197735,101140.0,101130.0,0.00606]
[1737991335524,0.558535,101140.0,101130.0,0.197753]
[1737991335721,0.558535,101140.0,101130.0,1.697753]
[1737991335928,0.3608,101150.0,101130.0,1.62809309]
[1737991336221,0.558515,101150.0,101140.0,0.32582809]
[1737991336418,0.3608,101150.0,101140.0,0.32582809]
[1737991336815,0.3608,101150.0,101140.0,0.197735]
[1737991336816,0.50785068,101150.0,101140.0,0.197735]
[1737991337031,0.3608,101150.0,101140.0,0.197735]
[1737991337529,0.3608,101150.0,101140.0,0.32582809]
[1737991338028,0.558515,101150.0,101140.0,0.197735]
[1737991338231,0.197735,101140.0,101130.0,1.697851]
[1737991338430,0.558535,101140.0,101130.0,1.697851]
[1737991338627,0.558518,101150.0,101140.0,0.197735]
[1737991338935,0.197735,101140.0,101130.0,1.83385009]
[1737991339127,0.191655,101140.0,101130.0,1.83385009]
[1737991339328,0.558527,101150.0,101140.0,0.197735]
[1737991339728,0.66561644,101150.0,101140.0,0.197735]
[1737991341130,0.66561644,101150.0,101140.0,0.32582809]
[1737991341434,0.558527,101150.0,101140.0,0.32582809]
[1737991341636,0.3608,101150.0,101140.0,0.32582809]
[1737991342024,0.26458682,101150.0,101140.0,0.68662809]
[1737991342628,0.26458682,101150.0,101140.0,2.18662809]
[1737991344432,0.12461983,101150.0,101140.0,2.18662809]
[1737991344634,0.17667854,101160.0,101150.0,0.197716]
[1737991344830,0.17667854,101160.0,101150.0,0.68660909]
[1737991345042,0.17667854,101160.0,101150.0,0.32580909]
[1737991345441,0.17667854,101160.0,101150.0,0.197716]
[1737991345742,0.0001485,101160.0,101150.0,0.32580909]
[1737991345941,0.1978445,101160.0,101150.0,0.32580909]
[1737991346748,0.0001485,101160.0,101150.0,0.32580909]
[1737991349047,0.0001485,101160.0,101150.0,0.68660909]
[1737991349255,0.0001485,101160.0,101150.0,2.18660909]
[1737991349641,0.0001485,101160.0,101150.0,2.19163058]
[1737991351353,0.17653004,101170.0,101160.0,0.197696]
[1737991351551,0.17653004,101170.0,101160.0,0.81468218]
[1737991351940,0.17653004,101170.0,101160.0,2.31468218]
[1737991352445,0.0001485,101180.0,101160.0,2.11698618]
[1737991352642,0.0001485,101180.0,101170.0,0.86866909]
[1737991353553,0.17724134,101180.0,101170.0,0.50786909]
[1737991354243,0.17724134,101180.0,101170.0,0.86866909]
[1737991354652,0.44097805,101190.0,101180.0,0.197657]
[1737991354851,0.44097805,101190.0,101180.0,0.68655009]
[1737991355250,0.41599671,101190.0,101180.0,2.67411009]
[1737991355553,0.41599671,101190.0,101180.0,2.76431009]
[1737991356248,0.0001485,101200.0,101190.0,0.197637]
[1737991356449,0.0001485,101200.0,101190.0,0.68653009]
[1737991356747,0.24009466,101220.0,101190.0,0.61698618]
[1737991356949,0.19061466,101220.0,101210.0,0.68649109]
[1737991357252,0.29774914,101220.0,101210.0,0.68649109]
[1737991358352,0.29774914,101220.0,101210.0,0.32569109]
[1737991358555,0.29774914,101220.0,101210.0,0.2960439]
[1737991359650,0.66551348,101220.0,101210.0,0.2960439]
[1737991359858,0.66551348,101220.0,101210.0,0.16795081]
[1737991360158,0.46793448,101220.0,101210.0,0.2960439]
[1737991360651,0.47280684,101220.0,101210.0,0.2960439]
[1737991361053,0.67038584,101220.0,101210.0,0.2960439]
[1737991361553,0.67038584,101220.0,101200.0,0.51285059]
[1737991361757,0.67038584,101220.0,101210.0,0.32569109]
[1737991362256,0.47280684,101220.0,101210.0,0.32569109]
[1737991362452,0.67038584,101220.0,101210.0,0.32569109]
[1737991362852,0.47280684,101220.0,101210.0,0.32569109]
[1737991363052,0.50244525,101220.0,101210.0,0.32569109]
[1737991363358,0.70002425,101220.0,101210.0,0.32569109]
[1737991364360,0.50244525,101220.0,101210.0,0.32569109]
[1737991365357,0.70002425,101220.0,101210.0,0.32569109]
[1737991365754,0.33922425,101220.0,101210.0,0.32569109]
[1737991365962,0.70002425,101220.0,101210.0,0.32569109]
[1737991368158,0.14164525,101220.0,101210.0,0.68649109]
[1737991368453,0.14164525,101220.0,101210.0,0.32569109]
[1737991368657,0.14164525,101220.0,101210.0,1.82569109]
[1737991369851,0.17128366,101220.0,101210.0,0.32569109]
[1737991370459,0.36886266,101220.0,101210.0,0.32569109]
[1737991370854,0.17128366,101220.0,101210.0,0.32569109]
[1737991374262,0.17128366,101220.0,101210.0,0.68649109]
[1737991374965,0.17128366,101220.0,101210.0,0.32569109]
[1737991376073,0.17128366,101220.0,101210.0,0.68649109]
[1737991376256,0.17128366,101220.0,101210.0,0.32569109]
[1737991380368,0.17128366,101220.0,101210.0,0.68649109]
[1737991380670,0.17128366,101220.0,101210.0,0.64362405]
[1737991380974,0.1664113,101220.0,101210.0,0.64362405]
[1737991381272,0.1664113,101220.0,101210.0,1.78282405]
[1737991381776,0.7247903,101220.0,101210.0,0.28282405]
[1737991383768,0.5272113,101220.0,101200.0,1.78298855]
[1737991383968,0.8165023,101220.0,101210.0,0.197598]
[1737991384581,0.8165023,101220.0,101210.0,0.28282405]
[1737991384971,0.9059023,101220.0,101210.0,0.28282405]
[1737991385274,0.197637,101190.0,101180.0,0.23172925]
[1737991385480,0.558437,101190.0,101180.0,0.19912925]
[1737991385670,0.66509588,101190.0,101180.0,0.19912925]
[1737991386180,0.66509588,101190.0,101180.0,1.69912925]
[1737991386372,0.66509588,101190.0,101180.0,0.19912925]
[1737991386574,0.66509588,101190.0,101180.0,0.2843553]
[1737991387383,0.46745888,101190.0,101180.0,0.2843553]
[1737991387686,0.3609485,101200.0,101180.0,0.4475083]
[1737991387873,0.5585665,101200.0,101190.0,0.28286305]
[1737991388180,0.66683579,101200.0,101190.0,0.28286305]
[1737991388767,0.66683579,101200.0,101190.0,0.197637]
[1737991389482,0.73942871,101200.0,101190.0,0.197637]
[1737991389682,0.73942871,101200.0,101190.0,0.28286305]
[1737991390078,0.73942871,101200.0,101190.0,0.197637]
[1737991391283,0.73942871,101200.0,101190.0,0.28286305]
[1737991391480,0.73942871,101200.0,101190.0,0.197637]
[1737991391876,0.66683579,101200.0,101190.0,0.197637]
[1737991392076,0.46921779,101200.0,101180.0,0.0867083]
[1737991392275,0.66684179,101200.0,101190.0,0.197637]
[1737991392483,0.46921779,101200.0,101190.0,0.28286305]
[1737991393084,0.3609485,101200.0,101190.0,0.46756305]
[1737991394982,0.0001485,101200.0,101190.0,0.82836305]
[1737991395483,0.20707523,101200.0,101190.0,0.9135891]
[1737991396278,0.07259292,101210.0,101200.0,0.197618]
[1737991396486,0.07259292,101210.0,101200.0,0.64364405]
[1737991396784,0.1785321,101210.0,101200.0,0.64364405]
[1737991396986,0.1785321,101210.0,101200.0,2.14364405]
[1737991399588,0.10593918,101210.0,101200.0,2.14364405]
[1737991400299,0.10593918,101210.0,101200.0,0.64364405]
[1737991400785,0.10593918,101210.0,101200.0,2.14364405]
[1737991401093,0.66433718,101210.0,101200.0,1.78284405]
[1737991401293,0.66433718,101210.0,101200.0,0.08522605]
[1737991401486,0.197618,101200.0,101190.0,0.00691783]
[1737991401687,0.847818,101200.0,101190.0,0.08537455]
[1737991401990,0.95196571,101200.0,101190.0,0.08537455]
[1737991402180,0.95196571,101200.0,101190.0,0.28301155]
[1737991403380,0.10414771,101200.0,101190.0,0.7290376]
[1737991403580,0.43372017,101220.0,101190.0,0.5314006]
[1737991403781,0.43372017,101220.0,101210.0,0.28282405]
[1737991404089,0.47047291,101220.0,101210.0,0.28282405]
[1737991404392,0.46385363,101220.0,101210.0,1.78282405]
[1737991404597,0.17025363,101220.0,101210.0,1.78282405]
[1737991405095,0.16877098,101220.0,101210.0,2.14362405]
[1737991405491,0.16877098,101220.0,101210.0,2.2288501]